[Event "Titled Tuesday Blitz October 25 Early 2022"]
[White "Matlakov, Maxim"]
[Black "Shipov, Sergei"]
[WhiteFideId "4168003"]
[BlackFideId "4113624"]
[WhiteElo "2669"]
[BlackElo "2744"]
[Result "1-0"]
[Round "11"]
[TimeControl "180+1"]
[Date "2022.10.25"]
[WhiteClock "0:00:20"]
[BlackClock "0:00:05"]

1. Nf3 {[%clk 0:03:00]}  d5 {[%clk 0:02:57]} 2. g3 {[%clk 0:03:01]}  c6 {[%clk 0:02:57]} 3. Bg2 {[%clk 0:03:01]}  Bg4 {[%clk 0:02:57]} 4. O-O {[%clk 0:03:02]}  Nd7 {[%clk 0:02:57]} 5. d3 {[%clk 0:03:02]}  e5 {[%clk 0:02:57]} 6. Qe1 {[%clk 0:03:03]}  Ngf6 {[%clk 0:02:55]} 7. e4 {[%clk 0:03:03]}  dxe4 {[%clk 0:02:55]} 8. dxe4 {[%clk 0:03:04]}  Bc5 {[%clk 0:02:55]} 9. Nbd2 {[%clk 0:03:04]}  O-O {[%clk 0:02:54]} 10. h3 {[%clk 0:03:04]}  Bh5 {[%clk 0:02:54]} 11. Nh4 {[%clk 0:03:03]}  Re8 {[%clk 0:02:53]} 12. Nc4 {[%clk 0:03:03]}  Qc7 {[%clk 0:02:49]} 13. a4 {[%clk 0:03:03]}  a5 {[%clk 0:02:49]} 14. Bd2 {[%clk 0:03:02]}  b6 {[%clk 0:02:48]} 15. Bc3 {[%clk 0:03:00]}  Rad8 {[%clk 0:02:38]} 16. Nf5 {[%clk 0:03:00]}  Nf8 {[%clk 0:02:32]} 17. Kh2 {[%clk 0:02:56]}  N6d7 {[%clk 0:02:28]} 18. f3 {[%clk 0:02:46]}  Ne6 {[%clk 0:02:25]} 19. Rd1 {[%clk 0:02:45]}  f6 {[%clk 0:02:04]} 20. h4 {[%clk 0:02:32]}  Ndf8 {[%clk 0:01:51]} 21. Qe2 {[%clk 0:02:27]}  Bf7 {[%clk 0:01:42]} 22. b3 {[%clk 0:02:20]}  Nd4 {[%clk 0:01:39]} 23. Bxd4 {[%clk 0:02:13]}  exd4 {[%clk 0:01:37]} 24. Nb2 {[%clk 0:02:13]}  Ne6 {[%clk 0:01:23]} 25. f4 {[%clk 0:02:07]}  Bf8 {[%clk 0:01:20]} 26. h5 {[%clk 0:02:03]}  g6 {[%clk 0:01:20]} 27. hxg6 {[%clk 0:02:02]}  hxg6 {[%clk 0:01:20]} 28. Nh4 {[%clk 0:02:02]}  Nc5 {[%clk 0:01:00]} 29. Nd3 {[%clk 0:01:51]}  Nxe4 {[%clk 0:00:55]} 30. Bxe4 {[%clk 0:01:48]}  f5 {[%clk 0:00:56]} 31. Ne5 {[%clk 0:01:48]}  fxe4 {[%clk 0:00:55]} 32. Qxe4 {[%clk 0:01:28]}  Re6 {[%clk 0:00:43]} 33. Rde1 {[%clk 0:01:26]}  Bg7 {[%clk 0:00:39]} 34. Nhf3 {[%clk 0:01:17]}  Be8 {[%clk 0:00:33]} 35. Ng5 {[%clk 0:01:15]}  Re7 {[%clk 0:00:32]} 36. Qd3 {[%clk 0:01:10]}  Qd6 {[%clk 0:00:31]} 37. Nc4 {[%clk 0:00:43]}  Qf6 {[%clk 0:00:24]} 38. Nxb6 {[%clk 0:00:40]}  c5 {[%clk 0:00:17]} 39. Qc4+ {[%clk 0:00:39]}  Kh8 {[%clk 0:00:16]} 40. Nd5 {[%clk 0:00:32]}  Rxd5 {[%clk 0:00:16]} 41. Qxd5 {[%clk 0:00:33]}  Rxe1 {[%clk 0:00:09]} 42. Rxe1 {[%clk 0:00:33]}  Bc6 {[%clk 0:00:09]} 43. Qf7 {[%clk 0:00:25]}  Qxf7 {[%clk 0:00:09]} 44. Nxf7+ {[%clk 0:00:26]}  Kg8 {[%clk 0:00:09]} 45. Ne5 {[%clk 0:00:24]}  Be8 {[%clk 0:00:08]} 46. Nc4 {[%clk 0:00:24]}  Bd7 {[%clk 0:00:07]} 47. Nxa5 {[%clk 0:00:24]}  Bf5 {[%clk 0:00:08]} 48. Re2 {[%clk 0:00:22]}  d3 {[%clk 0:00:07]} 49. cxd3 {[%clk 0:00:21]}  Bxd3 {[%clk 0:00:08]} 50. Rd2 {[%clk 0:00:21]}  Be4 {[%clk 0:00:08]} 51. Nc4 {[%clk 0:00:21]}  Bf6 {[%clk 0:00:07]} 52. a5 {[%clk 0:00:21]}  g5 {[%clk 0:00:06]} 53. a6 {[%clk 0:00:21]}  gxf4 {[%clk 0:00:06]} 54. gxf4 {[%clk 0:00:22]}  Kg7 {[%clk 0:00:06]} 55. a7 {[%clk 0:00:22]}  Kg6 {[%clk 0:00:06]} 56. Re2 {[%clk 0:00:21]}  Bb7 {[%clk 0:00:05]} 57. Re8 {[%clk 0:00:20]} 1-0


[Site "https://www.chess.com"]

[Event "Titled Tuesday Blitz October 25 Early 2022"]
[White "Molina, Roberto Junio Brito"]
[Black "Korchmar, Vasiliy"]
[WhiteFideId "2109450"]
[BlackFideId "24131750"]
[WhiteElo "2388"]
[BlackElo "2370"]
[Result "1-0"]
[Round "11"]
[TimeControl "180+1"]
[Date "2022.10.25"]
[WhiteClock "0:00:30"]
[BlackClock "0:00:05"]

1. d4 {[%clk 0:03:00]}  d5 {[%clk 0:03:00]} 2. Nf3 {[%clk 0:03:00]}  Nf6 {[%clk 0:03:00]} 3. e3 {[%clk 0:03:01]}  c5 {[%clk 0:02:57]} 4. c3 {[%clk 0:03:01]}  Nbd7 {[%clk 0:02:57]} 5. Nbd2 {[%clk 0:03:00]}  g6 {[%clk 0:02:56]} 6. b4 {[%clk 0:02:59]}  c4 {[%clk 0:02:55]} 7. e4 {[%clk 0:02:58]}  dxe4 {[%clk 0:02:47]} 8. Ng5 {[%clk 0:02:58]}  e3 {[%clk 0:02:15]} 9. fxe3 {[%clk 0:02:57]}  Bh6 {[%clk 0:02:15]} 10. h4 {[%clk 0:02:52]}  b5 {[%clk 0:02:00]} 11. a4 {[%clk 0:02:47]}  O-O {[%clk 0:01:49]} 12. axb5 {[%clk 0:02:47]}  Nb6 {[%clk 0:01:49]} 13. e4 {[%clk 0:02:42]}  e5 {[%clk 0:01:39]} 14. d5 {[%clk 0:02:42]}  Nh5 {[%clk 0:01:22]} 15. Qf3 {[%clk 0:02:19]}  f5 {[%clk 0:01:17]} 16. Nxc4 {[%clk 0:01:53]}  fxe4 {[%clk 0:01:14]} 17. Qe3 {[%clk 0:01:26]}  Nxd5 {[%clk 0:01:14]} 18. Qc5 {[%clk 0:01:15]}  Ng3 {[%clk 0:01:04]} 19. Rg1 {[%clk 0:01:14]}  Bg4 {[%clk 0:00:49]} 20. Nd6 {[%clk 0:01:11]}  Nf4 {[%clk 0:00:37]} 21. Qxe5 {[%clk 0:00:50]}  Nfe2 {[%clk 0:00:09]} 22. Bxe2 {[%clk 0:00:43]}  Nxe2 {[%clk 0:00:10]} 23. Be3 {[%clk 0:00:33]}  Bg7 {[%clk 0:00:09]} 24. Qd5+ {[%clk 0:00:32]}  Kh8 {[%clk 0:00:08]} 25. Ngf7+ {[%clk 0:00:32]}  Rxf7 {[%clk 0:00:05]} 26. Nxf7+ {[%clk 0:00:33]}  Kg8 {[%clk 0:00:05]} 27. Nxd8+ {[%clk 0:00:30]} 1-0


[Site "https://www.chess.com"]

[Event "Titled Tuesday Blitz October 25 Early 2022"]
[White "Oganian, Miran"]
[Black "Paravyan, David"]
[WhiteFideId "4122488"]
[BlackFideId "4194985"]
[WhiteElo "2339"]
[BlackElo "2555"]
[Result "0-1"]
[Round "11"]
[TimeControl "180+1"]
[Date "2022.10.25"]
[WhiteClock "0:00:03"]
[BlackClock "0:01:12"]

1. e4 {[%clk 0:03:00]}  e5 {[%clk 0:03:00]} 2. Nf3 {[%clk 0:02:59]}  Nf6 {[%clk 0:03:00]} 3. Nc3 {[%clk 0:02:59]}  Nc6 {[%clk 0:03:00]} 4. d4 {[%clk 0:02:58]}  exd4 {[%clk 0:03:01]} 5. Nxd4 {[%clk 0:02:58]}  Bb4 {[%clk 0:03:01]} 6. Nxc6 {[%clk 0:02:58]}  bxc6 {[%clk 0:03:02]} 7. Bd3 {[%clk 0:02:58]}  O-O {[%clk 0:03:02]} 8. O-O {[%clk 0:02:58]}  d5 {[%clk 0:03:02]} 9. exd5 {[%clk 0:02:59]}  Bg4 {[%clk 0:03:03]} 10. Be2 {[%clk 0:02:59]}  Bxe2 {[%clk 0:03:02]} 11. Nxe2 {[%clk 0:03:00]}  Re8 {[%clk 0:03:02]} 12. Bg5 {[%clk 0:02:34]}  Qxd5 {[%clk 0:02:59]} 13. Qxd5 {[%clk 0:02:32]}  cxd5 {[%clk 0:02:58]} 14. Nd4 {[%clk 0:02:19]}  Ne4 {[%clk 0:02:58]} 15. Be3 {[%clk 0:02:19]}  Bc5 {[%clk 0:02:41]} 16. Rad1 {[%clk 0:02:16]}  Nd6 {[%clk 0:02:30]} 17. Nf5 {[%clk 0:02:00]}  Nxf5 {[%clk 0:02:29]} 18. Bxc5 {[%clk 0:01:59]}  c6 {[%clk 0:02:30]} 19. Rfe1 {[%clk 0:01:59]}  a6 {[%clk 0:02:26]} 20. f3 {[%clk 0:01:58]}  f6 {[%clk 0:02:26]} 21. g4 {[%clk 0:01:57]}  Nh4 {[%clk 0:02:25]} 22. Kf2 {[%clk 0:01:56]}  Ng6 {[%clk 0:02:22]} 23. Kg3 {[%clk 0:01:53]}  Kf7 {[%clk 0:02:22]} 24. h4 {[%clk 0:01:51]}  Ne5 {[%clk 0:02:22]} 25. b3 {[%clk 0:01:48]}  Nd7 {[%clk 0:02:19]} 26. Bd6 {[%clk 0:01:47]}  Re6 {[%clk 0:02:17]} 27. Rxe6 {[%clk 0:01:45]}  Kxe6 {[%clk 0:02:18]} 28. Ba3 {[%clk 0:01:43]}  c5 {[%clk 0:02:18]} 29. Re1+ {[%clk 0:01:32]}  Kd6 {[%clk 0:02:18]} 30. h5 {[%clk 0:01:07]}  a5 {[%clk 0:02:15]} 31. f4 {[%clk 0:00:56]}  Rb8 {[%clk 0:01:58]} 32. Bb2 {[%clk 0:00:53]}  d4 {[%clk 0:01:56]} 33. g5 {[%clk 0:00:46]}  fxg5 {[%clk 0:01:56]} 34. fxg5 {[%clk 0:00:46]}  Nb6 {[%clk 0:01:53]} 35. Rf1 {[%clk 0:00:37]}  Ke6 {[%clk 0:01:52]} 36. Kg4 {[%clk 0:00:34]}  Nd5 {[%clk 0:01:52]} 37. Bc1 {[%clk 0:00:34]}  a4 {[%clk 0:01:49]} 38. Re1+ {[%clk 0:00:31]}  Kd6 {[%clk 0:01:49]} 39. Rf1 {[%clk 0:00:29]}  Re8 {[%clk 0:01:45]} 40. bxa4 {[%clk 0:00:27]}  Re2 {[%clk 0:01:45]} 41. a5 {[%clk 0:00:15]}  Rxc2 {[%clk 0:01:45]} 42. a3 {[%clk 0:00:16]}  Kc6 {[%clk 0:01:43]} 43. g6 {[%clk 0:00:16]}  hxg6 {[%clk 0:01:43]} 44. hxg6 {[%clk 0:00:17]}  Kb5 {[%clk 0:01:40]} 45. Bg5 {[%clk 0:00:13]}  Rg2+ {[%clk 0:01:39]} 46. Kh5 {[%clk 0:00:12]}  d3 {[%clk 0:01:39]} 47. Rf5 {[%clk 0:00:10]}  Nc3 {[%clk 0:01:20]} 48. Rf7 {[%clk 0:00:10]}  Ne4 {[%clk 0:01:16]} 49. Be3 {[%clk 0:00:06]}  Nf6+ {[%clk 0:01:11]} 50. Kh4 {[%clk 0:00:05]}  Rxg6 {[%clk 0:01:11]} 51. Rf8 {[%clk 0:00:04]}  Rg4+ {[%clk 0:01:11]} 52. Kh3 {[%clk 0:00:04]}  Ra4 {[%clk 0:01:12]} 53. Rb8+ {[%clk 0:00:03]}  Kc4 {[%clk 0:01:12]} 54. Rc8 {[%clk 0:00:04]}  Ne4 {[%clk 0:01:12]} 55. Kh4 {[%clk 0:00:04]}  Rxa5 {[%clk 0:01:12]} 56. Kg4 {[%clk 0:00:04]}  Rxa3 {[%clk 0:01:11]} 57. Kf4 {[%clk 0:00:04]}  d2 {[%clk 0:01:12]} 58. Bxd2 {[%clk 0:00:03]}  Nxd2 {[%clk 0:01:12]} 59. Kg5 {[%clk 0:00:03]}  Rg3+ {[%clk 0:01:12]} 0-1


[Site "https://www.chess.com"]

[Event "Titled Tuesday Blitz October 25 Early 2022"]
[White "Pranav, V"]
[Black "Dardha, Daniel"]
[WhiteFideId "25060783"]
[BlackFideId "240990"]
[WhiteElo "2430"]
[BlackElo "2528"]
[Result "0-1"]
[Round "11"]
[TimeControl "180+1"]
[Date "2022.10.25"]
[WhiteClock "0:00:37"]
[BlackClock "0:00:51"]

1. e4 {[%clk 0:03:00]}  e5 {[%clk 0:02:59]} 2. Nf3 {[%clk 0:03:01]}  Nc6 {[%clk 0:02:59]} 3. Bb5 {[%clk 0:03:00]}  Nf6 {[%clk 0:03:00]} 4. O-O {[%clk 0:02:57]}  Nxe4 {[%clk 0:02:58]} 5. d4 {[%clk 0:02:57]}  Nd6 {[%clk 0:02:58]} 6. Bxc6 {[%clk 0:02:57]}  dxc6 {[%clk 0:02:59]} 7. dxe5 {[%clk 0:02:58]}  Nf5 {[%clk 0:03:00]} 8. Qxd8+ {[%clk 0:02:59]}  Kxd8 {[%clk 0:03:01]} 9. Rd1+ {[%clk 0:02:57]}  Ke8 {[%clk 0:03:00]} 10. Nc3 {[%clk 0:02:58]}  Be7 {[%clk 0:03:01]} 11. h3 {[%clk 0:02:57]}  Nh4 {[%clk 0:03:01]} 12. Ng5 {[%clk 0:02:52]}  h6 {[%clk 0:02:57]} 13. Nge4 {[%clk 0:02:52]}  Be6 {[%clk 0:02:57]} 14. Be3 {[%clk 0:02:50]}  b6 {[%clk 0:02:58]} 15. a4 {[%clk 0:02:50]}  a5 {[%clk 0:02:58]} 16. g4 {[%clk 0:02:48]}  h5 {[%clk 0:02:56]} 17. g5 {[%clk 0:02:28]}  Bxh3 {[%clk 0:02:50]} 18. f4 {[%clk 0:02:24]}  Bg4 {[%clk 0:02:47]} 19. Rd3 {[%clk 0:02:23]}  Be6 {[%clk 0:02:44]} 20. Kf2 {[%clk 0:02:20]}  Nf5 {[%clk 0:02:44]} 21. Rh1 {[%clk 0:02:19]}  Rd8 {[%clk 0:02:43]} 22. Rxd8+ {[%clk 0:02:18]}  Kxd8 {[%clk 0:02:44]} 23. Kf3 {[%clk 0:02:14]}  Kc8 {[%clk 0:02:39]} 24. Bf2 {[%clk 0:02:15]}  g6 {[%clk 0:02:38]} 25. Ne2 {[%clk 0:02:13]}  Rd8 {[%clk 0:02:38]} 26. Rc1 {[%clk 0:01:58]}  Kb7 {[%clk 0:02:31]} 27. Bg1 {[%clk 0:01:49]}  Ng7 {[%clk 0:02:27]} 28. Nd4 {[%clk 0:01:44]}  Bg4+ {[%clk 0:02:24]} 29. Kg2 {[%clk 0:01:43]}  Ne6 {[%clk 0:02:17]} 30. Nxe6 {[%clk 0:01:37]}  Bxe6 {[%clk 0:02:18]} 31. Kg3 {[%clk 0:01:35]}  Bf5 {[%clk 0:02:10]} 32. Kf3 {[%clk 0:01:32]}  c5 {[%clk 0:02:06]} 33. Be3 {[%clk 0:01:31]}  Kc6 {[%clk 0:02:03]} 34. b3 {[%clk 0:01:23]}  Bg4+ {[%clk 0:01:55]} 35. Kf2 {[%clk 0:01:03]}  Rd1 {[%clk 0:01:54]} 36. c4 {[%clk 0:01:01]}  Rd3 {[%clk 0:01:48]} 37. Rc3 {[%clk 0:01:01]}  Rd8 {[%clk 0:01:47]} 38. Rc1 {[%clk 0:01:00]}  Bd1 {[%clk 0:01:43]} 39. Nd2 {[%clk 0:00:59]}  Rxd2+ {[%clk 0:01:29]} 40. Bxd2 {[%clk 0:01:00]}  Bxb3 {[%clk 0:01:30]} 41. e6 {[%clk 0:01:00]}  fxe6 {[%clk 0:01:29]} 42. Ke3 {[%clk 0:00:58]}  Bxa4 {[%clk 0:01:28]} 43. Ke4 {[%clk 0:00:58]}  Bd6 {[%clk 0:01:27]} 44. Bc3 {[%clk 0:00:58]}  Kd7 {[%clk 0:01:24]} 45. Be5 {[%clk 0:00:56]}  Bc6+ {[%clk 0:01:23]} 46. Ke3 {[%clk 0:00:57]}  a4 {[%clk 0:01:20]} 47. Rd1 {[%clk 0:00:53]}  h4 {[%clk 0:01:15]} 48. Kf2 {[%clk 0:00:53]}  Be4 {[%clk 0:01:05]} 49. Kg1 {[%clk 0:00:49]}  Kc6 {[%clk 0:01:02]} 50. Kh2 {[%clk 0:00:43]}  Bc2 {[%clk 0:00:58]} 51. Re1 {[%clk 0:00:39]}  Bxe5 {[%clk 0:00:55]} 52. Rxe5 {[%clk 0:00:39]}  Kd6 {[%clk 0:00:53]} 53. Kh3 {[%clk 0:00:37]}  Bd3 {[%clk 0:00:52]} 54. Kxh4 {[%clk 0:00:36]}  Bxc4 {[%clk 0:00:51]} 55. Re3 {[%clk 0:00:37]}  Bb3 {[%clk 0:00:51]} 0-1


[Site "https://www.chess.com"]

[Event "Titled Tuesday Blitz October 25 Early 2022"]
[White "Rohith Krishna S"]
[Black "Al-Tarboush, Ward"]
[WhiteFideId "46617051"]
[BlackFideId "7601450"]
[WhiteElo "2270"]
[BlackElo "2269"]
[Result "0-1"]
[Round "11"]
[TimeControl "180+1"]
[Date "2022.10.25"]
[WhiteClock "0:01:18"]
[BlackClock "0:01:44"]

1. e4 {[%clk 0:03:00]}  e5 {[%clk 0:02:59]} 2. Nf3 {[%clk 0:03:00]}  Nf6 {[%clk 0:02:59]} 3. Nc3 {[%clk 0:03:00]}  Nc6 {[%clk 0:02:58]} 4. Bc4 {[%clk 0:02:59]}  Be7 {[%clk 0:02:55]} 5. d3 {[%clk 0:02:56]}  O-O {[%clk 0:02:56]} 6. O-O {[%clk 0:02:57]}  d6 {[%clk 0:02:54]} 7. a4 {[%clk 0:02:57]}  Bg4 {[%clk 0:02:54]} 8. h3 {[%clk 0:02:56]}  Bh5 {[%clk 0:02:53]} 9. g4 {[%clk 0:02:56]}  Nxg4 {[%clk 0:02:48]} 10. hxg4 {[%clk 0:02:57]}  Bxg4 {[%clk 0:02:48]} 11. Be3 {[%clk 0:02:57]}  Kh8 {[%clk 0:02:43]} 12. Kg2 {[%clk 0:02:38]}  f5 {[%clk 0:02:42]} 13. exf5 {[%clk 0:02:38]}  Rxf5 {[%clk 0:02:36]} 14. Bd5 {[%clk 0:02:38]}  Qd7 {[%clk 0:02:29]} 15. Rh1 {[%clk 0:02:15]}  Raf8 {[%clk 0:02:26]} 16. Be4 {[%clk 0:02:01]}  Bxf3+ {[%clk 0:02:15]} 17. Bxf3 {[%clk 0:02:01]}  Rxf3 {[%clk 0:02:15]} 18. Qxf3 {[%clk 0:02:02]}  Rxf3 {[%clk 0:02:16]} 19. Kxf3 {[%clk 0:02:03]}  d5 {[%clk 0:02:14]} 20. Bd2 {[%clk 0:02:02]}  e4+ {[%clk 0:02:14]} 21. dxe4 {[%clk 0:01:58]}  Nd4+ {[%clk 0:02:14]} 22. Kg3 {[%clk 0:01:57]}  Qd6+ {[%clk 0:02:04]} 23. Bf4 {[%clk 0:01:35]}  Qg6+ {[%clk 0:02:04]} 24. Kh3 {[%clk 0:01:36]}  Qh5+ {[%clk 0:02:00]} 25. Kg2 {[%clk 0:01:23]}  Qf3+ {[%clk 0:01:58]} 26. Kg1 {[%clk 0:01:22]}  Qxf4 {[%clk 0:01:58]} 27. Nxd5 {[%clk 0:01:23]}  Qg4+ {[%clk 0:01:57]} 28. Kf1 {[%clk 0:01:22]}  Qe2+ {[%clk 0:01:58]} 29. Kg1 {[%clk 0:01:22]}  Qxe4 {[%clk 0:01:56]} 30. Ne3 {[%clk 0:01:19]}  Ne2+ {[%clk 0:01:44]} 31. Kf1 {[%clk 0:01:17]}  Qxh1+ {[%clk 0:01:43]} 32. Kxe2 {[%clk 0:01:18]}  Qxa1 {[%clk 0:01:44]} 0-1


[Site "https://www.chess.com"]

[Event "Titled Tuesday Blitz October 25 Early 2022"]
[White "Sarana, Alexey"]
[Black "Krysa, Leandro"]
[WhiteFideId "24133795"]
[BlackFideId "116807"]
[WhiteElo "2689"]
[BlackElo "2486"]
[Result "1-0"]
[Round "11"]
[TimeControl "180+1"]
[Date "2022.10.25"]
[WhiteClock "0:01:38"]
[BlackClock "0:00:01"]

1. c4 {[%clk 0:03:00]}  g6 {[%clk 0:03:00]} 2. d4 {[%clk 0:03:00]}  Bg7 {[%clk 0:02:59]} 3. Nc3 {[%clk 0:03:01]}  c5 {[%clk 0:02:59]} 4. d5 {[%clk 0:03:02]}  Bxc3+ {[%clk 0:02:58]} 5. bxc3 {[%clk 0:03:02]}  d6 {[%clk 0:02:57]} 6. e4 {[%clk 0:03:01]}  e5 {[%clk 0:02:57]} 7. Bd3 {[%clk 0:03:00]}  Nd7 {[%clk 0:02:57]} 8. h4 {[%clk 0:02:57]}  h5 {[%clk 0:02:56]} 9. Ne2 {[%clk 0:02:56]}  Nh6 {[%clk 0:02:55]} 10. f3 {[%clk 0:02:55]}  f6 {[%clk 0:02:54]} 11. Be3 {[%clk 0:02:53]}  Nf7 {[%clk 0:02:54]} 12. g4 {[%clk 0:02:50]}  Qe7 {[%clk 0:02:49]} 13. Ng3 {[%clk 0:02:49]}  hxg4 {[%clk 0:02:42]} 14. fxg4 {[%clk 0:02:50]}  Nb6 {[%clk 0:02:30]} 15. a4 {[%clk 0:02:47]}  g5 {[%clk 0:02:24]} 16. h5 {[%clk 0:02:47]}  Nh6 {[%clk 0:02:21]} 17. Be2 {[%clk 0:02:46]}  a5 {[%clk 0:02:13]} 18. Kd2 {[%clk 0:02:37]}  Kd8 {[%clk 0:02:10]} 19. Rg1 {[%clk 0:02:30]}  Kc7 {[%clk 0:02:06]} 20. Nf1 {[%clk 0:02:30]}  Bd7 {[%clk 0:02:04]} 21. Qb3 {[%clk 0:02:30]}  Qe8 {[%clk 0:02:01]} 22. Bd1 {[%clk 0:02:30]}  Ra6 {[%clk 0:01:55]} 23. Bf2 {[%clk 0:02:28]}  Rf8 {[%clk 0:01:47]} 24. Ne3 {[%clk 0:02:28]}  Kb8 {[%clk 0:01:44]} 25. Be2 {[%clk 0:02:18]}  Bxa4 {[%clk 0:01:39]} 26. Qb2 {[%clk 0:02:17]}  Bd7 {[%clk 0:01:37]} 27. Rgb1 {[%clk 0:02:17]}  a4 {[%clk 0:01:35]} 28. Qa3 {[%clk 0:02:15]}  Qd8 {[%clk 0:01:34]} 29. Rb2 {[%clk 0:02:15]}  Qc7 {[%clk 0:01:35]} 30. Rab1 {[%clk 0:02:15]}  Ka7 {[%clk 0:01:32]} 31. Kd3 {[%clk 0:02:15]}  Ka8 {[%clk 0:01:31]} 32. Bf3 {[%clk 0:02:15]}  Ka7 {[%clk 0:01:31]} 33. Be1 {[%clk 0:02:12]}  Rf7 {[%clk 0:01:30]} 34. Ke2 {[%clk 0:02:07]}  Rf8 {[%clk 0:01:29]} 35. Kf2 {[%clk 0:02:08]}  Rf7 {[%clk 0:01:29]} 36. Kg3 {[%clk 0:02:08]}  Rf8 {[%clk 0:01:30]} 37. Rb5 {[%clk 0:02:08]}  Rf7 {[%clk 0:01:23]} 38. Qa2 {[%clk 0:02:07]}  Rf8 {[%clk 0:01:23]} 39. R5b2 {[%clk 0:02:07]}  Ra8 {[%clk 0:01:17]} 40. Rg2 {[%clk 0:01:59]}  Kb8 {[%clk 0:01:16]} 41. Qa3 {[%clk 0:01:59]}  Kc8 {[%clk 0:01:14]} 42. Rgb2 {[%clk 0:01:57]}  Kd8 {[%clk 0:01:12]} 43. Bd2 {[%clk 0:01:55]}  Ke7 {[%clk 0:01:12]} 44. Bc1 {[%clk 0:01:56]}  R8a7 {[%clk 0:01:12]} 45. Qa2 {[%clk 0:01:51]}  Ra8 {[%clk 0:01:07]} 46. Rd2 {[%clk 0:01:51]}  R8a7 {[%clk 0:01:07]} 47. Ba3 {[%clk 0:01:51]}  Ra8 {[%clk 0:01:06]} 48. Rdb2 {[%clk 0:01:51]}  R8a7 {[%clk 0:01:06]} 49. Rc2 {[%clk 0:01:47]}  Ra8 {[%clk 0:01:06]} 50. Qb2 {[%clk 0:01:48]}  R8a7 {[%clk 0:01:06]} 51. Qc1 {[%clk 0:01:48]}  Ra8 {[%clk 0:01:04]} 52. Rcb2 {[%clk 0:01:49]}  R8a7 {[%clk 0:01:05]} 53. Qd2 {[%clk 0:01:48]}  Ra8 {[%clk 0:01:05]} 54. Qd3 {[%clk 0:01:48]}  R8a7 {[%clk 0:01:05]} 55. Ra2 {[%clk 0:01:48]}  Ra8 {[%clk 0:01:04]} 56. Nc2 {[%clk 0:01:49]}  Qc8 {[%clk 0:01:01]} 57. Qe2 {[%clk 0:01:46]}  R8a7 {[%clk 0:00:48]} 58. Bc1 {[%clk 0:01:46]}  Ra8 {[%clk 0:00:47]} 59. Na3 {[%clk 0:01:46]}  R8a7 {[%clk 0:00:41]} 60. Rab2 {[%clk 0:01:47]}  Qc7 {[%clk 0:00:37]} 61. Be3 {[%clk 0:01:47]}  Be8 {[%clk 0:00:34]} 62. Qd2 {[%clk 0:01:48]}  Nf7 {[%clk 0:00:34]} 63. h6 {[%clk 0:01:48]}  Nxh6 {[%clk 0:00:31]} 64. Bxg5 {[%clk 0:01:48]}  Nf7 {[%clk 0:00:32]} 65. Bh4 {[%clk 0:01:47]}  Bd7 {[%clk 0:00:19]} 66. g5 {[%clk 0:01:47]}  Kd8 {[%clk 0:00:10]} 67. g6 {[%clk 0:01:46]}  Be8 {[%clk 0:00:05]} 68. Bxf6+ {[%clk 0:01:46]}  Kc8 {[%clk 0:00:05]} 69. Bg4+ {[%clk 0:01:46]}  Kb8 {[%clk 0:00:05]} 70. gxf7 {[%clk 0:01:46]}  Qxf7 {[%clk 0:00:04]} 71. Qg5 {[%clk 0:01:47]}  Nd7 {[%clk 0:00:04]} 72. Be7 {[%clk 0:01:43]}  Kc7 {[%clk 0:00:03]} 73. Rf2 {[%clk 0:01:42]}  Qh7 {[%clk 0:00:03]} 74. Bf5 {[%clk 0:01:41]}  Qh8 {[%clk 0:00:03]} 75. Nb5+ {[%clk 0:01:37]}  Kb8 {[%clk 0:00:01]} 76. Bxd6+ {[%clk 0:01:38]} 1-0


[Site "https://www.chess.com"]

[Event "Titled Tuesday Blitz October 25 Early 2022"]
[White "Shankland, Sam"]
[Black "Jobava, Baadur"]
[WhiteFideId "2004887"]
[BlackFideId "13601520"]
[WhiteElo "2612"]
[BlackElo "2582"]
[Result "1/2-1/2"]
[Round "11"]
[TimeControl "180+1"]
[Date "2022.10.25"]
[WhiteClock "0:01:54"]
[BlackClock "0:00:18"]

1. d4 {[%clk 0:03:00]}  Nf6 {[%clk 0:02:59]} 2. c4 {[%clk 0:03:01]}  c5 {[%clk 0:03:00]} 3. d5 {[%clk 0:03:00]}  d6 {[%clk 0:03:01]} 4. Nc3 {[%clk 0:03:00]}  g6 {[%clk 0:03:01]} 5. Nf3 {[%clk 0:03:00]}  Bg7 {[%clk 0:03:02]} 6. e4 {[%clk 0:03:01]}  O-O {[%clk 0:03:03]} 7. Be2 {[%clk 0:03:01]}  e6 {[%clk 0:03:03]} 8. O-O {[%clk 0:03:01]}  exd5 {[%clk 0:03:04]} 9. exd5 {[%clk 0:03:02]}  Bg4 {[%clk 0:03:04]} 10. h3 {[%clk 0:02:55]}  Bxf3 {[%clk 0:03:04]} 11. Bxf3 {[%clk 0:02:56]}  Nfd7 {[%clk 0:03:04]} 12. Bf4 {[%clk 0:02:54]}  Ne5 {[%clk 0:03:04]} 13. Be2 {[%clk 0:02:54]}  Nbd7 {[%clk 0:03:03]} 14. Qd2 {[%clk 0:02:54]}  f5 {[%clk 0:03:02]} 15. Rae1 {[%clk 0:02:53]}  Nf7 {[%clk 0:03:00]} 16. b3 {[%clk 0:02:51]}  g5 {[%clk 0:02:52]} 17. Bh2 {[%clk 0:02:51]}  Qa5 {[%clk 0:02:46]} 18. Rc1 {[%clk 0:02:51]}  Rae8 {[%clk 0:02:46]} 19. Bh5 {[%clk 0:02:48]}  f4 {[%clk 0:02:45]} 20. Rfd1 {[%clk 0:02:44]}  Bxc3 {[%clk 0:02:39]} 21. Qxc3 {[%clk 0:02:39]}  Qxc3 {[%clk 0:02:39]} 22. Rxc3 {[%clk 0:02:40]}  Nf6 {[%clk 0:02:39]} 23. Bxf7+ {[%clk 0:02:27]}  Rxf7 {[%clk 0:02:40]} 24. Kf1 {[%clk 0:02:27]}  Ne4 {[%clk 0:02:38]} 25. Rc2 {[%clk 0:02:26]}  h5 {[%clk 0:02:31]} 26. f3 {[%clk 0:02:22]}  Ng3+ {[%clk 0:02:13]} 27. Bxg3 {[%clk 0:02:22]}  fxg3 {[%clk 0:02:14]} 28. Re1 {[%clk 0:02:22]}  Rxe1+ {[%clk 0:02:02]} 29. Kxe1 {[%clk 0:02:22]}  Re7+ {[%clk 0:01:49]} 30. Re2 {[%clk 0:02:22]}  Kf7 {[%clk 0:01:49]} 31. Rxe7+ {[%clk 0:02:10]}  Kxe7 {[%clk 0:01:50]} 32. Ke2 {[%clk 0:02:10]}  Kf6 {[%clk 0:01:50]} 33. Ke3 {[%clk 0:02:09]}  Ke5 {[%clk 0:01:50]} 34. Kd3 {[%clk 0:02:08]}  Kf4 {[%clk 0:01:39]} 35. Kd2 {[%clk 0:02:07]}  a6 {[%clk 0:01:32]} 36. a4 {[%clk 0:02:06]}  b6 {[%clk 0:01:31]} 37. Kd3 {[%clk 0:02:05]}  Kf5 {[%clk 0:01:29]} 38. Ke3 {[%clk 0:02:05]}  Ke5 {[%clk 0:01:29]} 39. Kd3 {[%clk 0:02:05]}  Kf4 {[%clk 0:01:08]} 40. Kd2 {[%clk 0:02:02]}  Ke5 {[%clk 0:01:01]} 41. Ke3 {[%clk 0:02:01]}  b5 {[%clk 0:00:56]} 42. a5 {[%clk 0:01:55]}  b4 {[%clk 0:00:46]} 43. Kd3 {[%clk 0:01:55]}  Kf4 {[%clk 0:00:44]} 44. Kd2 {[%clk 0:01:54]}  Kf5 {[%clk 0:00:32]} 45. Ke3 {[%clk 0:01:54]}  Ke5 {[%clk 0:00:32]} 46. Kd3 {[%clk 0:01:54]}  Kf4 {[%clk 0:00:29]} 47. Kd2 {[%clk 0:01:54]}  Kf5 {[%clk 0:00:19]} 48. Ke3 {[%clk 0:01:54]}  Ke5 {[%clk 0:00:18]} 1/2-1/2


[Site "https://www.chess.com"]